[Event "Titled Tuesday Blitz March 28 Late 2023"]
[White "Rustemov, Alexander"]
[Black "Poliakova, Varvara"]
[WhiteFideId "4119002"]
[BlackFideId "13518313"]
[WhiteElo "2860"]
[BlackElo "2075"]
[Result "1-0"]
[Round "03"]
[TimeControl "180+2"]
[Date "2023.03.28"]
[WhiteClock "0:00:16"]
[BlackClock "0:00:01"]

1. d4 {[%clk 0:02:57]}  f5 {[%clk 0:02:58]} 2. g3 {[%clk 0:02:57]}  d6 {[%clk 0:02:57]} 3. Nf3 {[%clk 0:02:54]}  Nf6 {[%clk 0:02:57]} 4. Bg2 {[%clk 0:02:54]}  g6 {[%clk 0:02:57]} 5. O-O {[%clk 0:02:53]}  Bg7 {[%clk 0:02:54]} 6. c4 {[%clk 0:02:54]}  O-O {[%clk 0:02:55]} 7. Nc3 {[%clk 0:02:54]}  Nc6 {[%clk 0:02:54]} 8. d5 {[%clk 0:02:52]}  Ne5 {[%clk 0:02:54]} 9. Nxe5 {[%clk 0:02:51]}  dxe5 {[%clk 0:02:55]} 10. Qb3 {[%clk 0:02:52]}  e6 {[%clk 0:02:49]} 11. Rd1 {[%clk 0:02:50]}  Qe7 {[%clk 0:02:47]} 12. e4 {[%clk 0:02:40]}  exd5 {[%clk 0:02:44]} 13. cxd5 {[%clk 0:02:36]}  Qf7 {[%clk 0:02:34]} 14. Be3 {[%clk 0:02:32]}  f4 {[%clk 0:02:09]} 15. Bc5 {[%clk 0:02:31]}  Re8 {[%clk 0:01:55]} 16. f3 {[%clk 0:02:31]}  fxg3 {[%clk 0:01:54]} 17. hxg3 {[%clk 0:02:31]}  Nh5 {[%clk 0:01:51]} 18. Ne2 {[%clk 0:02:22]}  b6 {[%clk 0:01:47]} 19. Bf2 {[%clk 0:02:17]}  Bf8 {[%clk 0:01:42]} 20. Rac1 {[%clk 0:02:14]}  Bd6 {[%clk 0:01:42]} 21. Qd3 {[%clk 0:02:05]}  a6 {[%clk 0:01:35]} 22. b3 {[%clk 0:01:57]}  Bd7 {[%clk 0:01:36]} 23. a4 {[%clk 0:01:57]}  Rf8 {[%clk 0:01:32]} 24. Be3 {[%clk 0:01:49]}  Kg7 {[%clk 0:01:21]} 25. Rf1 {[%clk 0:01:50]}  h6 {[%clk 0:01:20]} 26. Kh2 {[%clk 0:01:48]}  g5 {[%clk 0:01:21]} 27. Bh3 {[%clk 0:01:46]}  Bxh3 {[%clk 0:01:19]} 28. Kxh3 {[%clk 0:01:47]}  Kh7 {[%clk 0:01:15]} 29. Kg2 {[%clk 0:01:46]}  Qg6 {[%clk 0:01:14]} 30. g4 {[%clk 0:01:37]}  Nf4+ {[%clk 0:01:13]} 31. Bxf4 {[%clk 0:01:37]}  gxf4 {[%clk 0:01:11]} 32. Rh1 {[%clk 0:01:36]}  Rf6 {[%clk 0:01:00]} 33. Rh5 {[%clk 0:01:35]}  Qg7 {[%clk 0:00:56]} 34. Rch1 {[%clk 0:01:34]}  Rg6 {[%clk 0:00:57]} 35. Kf1 {[%clk 0:01:27]}  a5 {[%clk 0:00:54]} 36. Qb5 {[%clk 0:01:25]}  Rg8 {[%clk 0:00:49]} 37. Nc1 {[%clk 0:01:20]}  Rg5 {[%clk 0:00:43]} 38. Nd3 {[%clk 0:01:19]}  Rxh5 {[%clk 0:00:41]} 39. Rxh5 {[%clk 0:01:19]}  Qe7 {[%clk 0:00:36]} 40. Nb2 {[%clk 0:01:15]}  Rg5 {[%clk 0:00:36]} 41. Rh3 {[%clk 0:01:12]}  Kg6 {[%clk 0:00:36]} 42. Nd3 {[%clk 0:01:05]}  h5 {[%clk 0:00:33]} 43. Nf2 {[%clk 0:00:58]}  hxg4 {[%clk 0:00:29]} 44. Nxg4 {[%clk 0:00:58]}  Rh5 {[%clk 0:00:30]} 45. Rxh5 {[%clk 0:00:54]}  Kxh5 {[%clk 0:00:31]} 46. Qe2 {[%clk 0:00:54]}  Kg5 {[%clk 0:00:26]} 47. Qh2 {[%clk 0:00:53]}  Qg7 {[%clk 0:00:25]} 48. Ke2 {[%clk 0:00:51]}  Kg6 {[%clk 0:00:20]} 49. Qh4 {[%clk 0:00:50]}  Kf7 {[%clk 0:00:20]} 50. Kd3 {[%clk 0:00:46]}  Ke8 {[%clk 0:00:15]} 51. Nf6+ {[%clk 0:00:45]}  Kf7 {[%clk 0:00:14]} 52. Ng4 {[%clk 0:00:42]}  Ke8 {[%clk 0:00:14]} 53. Kc4 {[%clk 0:00:42]}  Kd7 {[%clk 0:00:12]} 54. Kb5 {[%clk 0:00:41]}  Kc8 {[%clk 0:00:13]} 55. Ka6 {[%clk 0:00:39]}  Qd7 {[%clk 0:00:09]} 56. Qh8+ {[%clk 0:00:35]}  Qd8 {[%clk 0:00:09]} 57. Qxd8+ {[%clk 0:00:33]}  Kxd8 {[%clk 0:00:10]} 58. Kb7 {[%clk 0:00:33]}  Ke7 {[%clk 0:00:09]} 59. Nh6 {[%clk 0:00:33]}  Kd7 {[%clk 0:00:08]} 60. Nf5 {[%clk 0:00:32]}  Bf8 {[%clk 0:00:08]} 61. Nh4 {[%clk 0:00:28]}  Bc5 {[%clk 0:00:07]} 62. Ng6 {[%clk 0:00:24]}  Bd6 {[%clk 0:00:07]} 63. Ka6 {[%clk 0:00:24]}  Bc5 {[%clk 0:00:07]} 64. Nxe5+ {[%clk 0:00:22]}  Kd6 {[%clk 0:00:08]} 65. Nc4+ {[%clk 0:00:22]}  Kd7 {[%clk 0:00:06]} 66. Kb7 {[%clk 0:00:20]}  Bd4 {[%clk 0:00:02]} 67. d6 {[%clk 0:00:18]}  c5 {[%clk 0:00:01]} 68. Kxb6 {[%clk 0:00:16]} 1-0


[Site "https://www.chess.com"]

[Event "Titled Tuesday Blitz March 28 Late 2023"]
[White "Veiga, Jose Francisco R P Neves"]
[Black "Baches Garcia, Guillermo"]
[WhiteFideId "1930087"]
[BlackFideId "2209764"]
[WhiteElo "2320"]
[BlackElo "2477"]
[Result "1-0"]
[Round "03"]
[TimeControl "180+2"]
[Date "2023.03.28"]
[WhiteClock "0:00:16"]
[BlackClock "0:00:10"]

1. e4 {[%clk 0:02:38]}  d5 {[%clk 0:02:57]} 2. exd5 {[%clk 0:02:38]}  Qxd5 {[%clk 0:02:58]} 3. Nc3 {[%clk 0:02:38]}  Qa5 {[%clk 0:02:58]} 4. Nf3 {[%clk 0:02:38]}  c6 {[%clk 0:02:58]} 5. d4 {[%clk 0:02:38]}  Nf6 {[%clk 0:02:58]} 6. Bc4 {[%clk 0:02:38]}  Bf5 {[%clk 0:02:58]} 7. Bd2 {[%clk 0:02:36]}  e6 {[%clk 0:02:58]} 8. Nd5 {[%clk 0:02:35]}  Qd8 {[%clk 0:02:58]} 9. Nxf6+ {[%clk 0:02:35]}  gxf6 {[%clk 0:02:58]} 10. Bb3 {[%clk 0:02:18]}  Nd7 {[%clk 0:02:58]} 11. Bf4 {[%clk 0:02:17]}  Qa5+ {[%clk 0:02:49]} 12. c3 {[%clk 0:02:16]}  O-O-O {[%clk 0:02:49]} 13. Qe2 {[%clk 0:02:15]}  Bg6 {[%clk 0:02:39]} 14. O-O-O {[%clk 0:02:11]}  Nb6 {[%clk 0:02:32]} 15. Nh4 {[%clk 0:02:09]}  Bd6 {[%clk 0:02:22]} 16. Bxd6 {[%clk 0:02:07]}  Rxd6 {[%clk 0:02:20]} 17. Nxg6 {[%clk 0:02:08]}  hxg6 {[%clk 0:02:20]} 18. Qf3 {[%clk 0:02:05]}  f5 {[%clk 0:02:08]} 19. h4 {[%clk 0:02:04]}  Rhd8 {[%clk 0:02:05]} 20. h5 {[%clk 0:02:03]}  gxh5 {[%clk 0:02:05]} 21. Qxh5 {[%clk 0:02:03]}  R6d7 {[%clk 0:01:50]} 22. g4 {[%clk 0:02:01]}  c5 {[%clk 0:01:40]} 23. dxc5 {[%clk 0:01:55]}  Rxd1+ {[%clk 0:01:24]} 24. Rxd1 {[%clk 0:01:54]}  Rxd1+ {[%clk 0:01:23]} 25. Kxd1 {[%clk 0:01:52]}  Qxc5 {[%clk 0:01:19]} 26. Qxf7 {[%clk 0:01:52]}  fxg4 {[%clk 0:00:38]} 27. Bxe6+ {[%clk 0:01:50]}  Kb8 {[%clk 0:00:37]} 28. Qf4+ {[%clk 0:01:30]}  Ka8 {[%clk 0:00:30]} 29. Qxg4 {[%clk 0:01:14]}  a6 {[%clk 0:00:30]} 30. Qd4 {[%clk 0:01:11]}  Qc7 {[%clk 0:00:29]} 31. f4 {[%clk 0:01:07]}  Ka7 {[%clk 0:00:28]} 32. a4 {[%clk 0:01:06]}  a5 {[%clk 0:00:28]} 33. Qe5 {[%clk 0:01:04]}  Qd8+ {[%clk 0:00:25]} 34. Kc2 {[%clk 0:01:04]}  Nxa4 {[%clk 0:00:24]} 35. Qd4+ {[%clk 0:01:00]}  Qxd4 {[%clk 0:00:23]} 36. cxd4 {[%clk 0:01:01]}  Kb6 {[%clk 0:00:22]} 37. f5 {[%clk 0:01:00]}  Kc7 {[%clk 0:00:22]} 38. Kb3 {[%clk 0:00:38]}  b5 {[%clk 0:00:20]} 39. Bc4 {[%clk 0:00:18]}  Kb6 {[%clk 0:00:10]} 40. f6 {[%clk 0:00:16]} 1-0


[Site "https://www.chess.com"]

[Event "Titled Tuesday Blitz March 28 Late 2023"]
[White "Vovk, Orest"]
[Black "Gholami Orimi, Mahdi"]
[WhiteFideId "14113490"]
[BlackFideId "12558486"]
[WhiteElo "2215"]
[BlackElo "2363"]
[Result "0-1"]
[Round "03"]
[TimeControl "180+2"]
[Date "2023.03.28"]
[WhiteClock "0:00:49"]
[BlackClock "0:01:48"]

1. h4 {[%clk 0:02:47]}  c5 {[%clk 0:02:57]} 2. h5 {[%clk 0:02:47]}  Nc6 {[%clk 0:02:57]} 3. Nc3 {[%clk 0:02:45]}  d5 {[%clk 0:02:57]} 4. e4 {[%clk 0:02:45]}  d4 {[%clk 0:02:53]} 5. Nce2 {[%clk 0:02:44]}  e5 {[%clk 0:02:52]} 6. Ng3 {[%clk 0:02:44]}  Be7 {[%clk 0:02:49]} 7. Bc4 {[%clk 0:02:44]}  Na5 {[%clk 0:02:44]} 8. Bb5+ {[%clk 0:02:37]}  Bd7 {[%clk 0:02:41]} 9. Bxd7+ {[%clk 0:02:36]}  Qxd7 {[%clk 0:02:41]} 10. Nf3 {[%clk 0:02:35]}  Nc6 {[%clk 0:02:39]} 11. Nf5 {[%clk 0:02:32]}  Bf6 {[%clk 0:02:38]} 12. h6 {[%clk 0:02:25]}  g6 {[%clk 0:02:38]} 13. Ng7+ {[%clk 0:02:24]}  Kf8 {[%clk 0:02:33]} 14. d3 {[%clk 0:02:23]}  Bxg7 {[%clk 0:02:33]} 15. hxg7+ {[%clk 0:02:23]}  Kxg7 {[%clk 0:02:33]} 16. Bd2 {[%clk 0:02:19]}  f6 {[%clk 0:02:29]} 17. Qe2 {[%clk 0:02:18]}  Qe6 {[%clk 0:02:25]} 18. b3 {[%clk 0:02:16]}  h5 {[%clk 0:02:22]} 19. O-O-O {[%clk 0:02:15]}  a5 {[%clk 0:02:23]} 20. Rdg1 {[%clk 0:02:05]}  a4 {[%clk 0:02:21]} 21. Kb2 {[%clk 0:02:05]}  Nb4 {[%clk 0:02:17]} 22. Bxb4 {[%clk 0:02:02]}  cxb4 {[%clk 0:02:18]} 23. Nh4 {[%clk 0:01:43]}  Nh6 {[%clk 0:02:17]} 24. f3 {[%clk 0:01:37]}  axb3 {[%clk 0:02:12]} 25. axb3 {[%clk 0:01:34]}  Qc6 {[%clk 0:02:12]} 26. Rb1 {[%clk 0:01:23]}  Rhc8 {[%clk 0:01:55]} 27. Kc1 {[%clk 0:01:08]}  Ra2 {[%clk 0:01:54]} 28. Kd1 {[%clk 0:00:54]}  Qxc2+ {[%clk 0:01:51]} 29. Qxc2 {[%clk 0:00:54]}  Rcxc2 {[%clk 0:01:52]} 30. Ke1 {[%clk 0:00:49]}  g5 {[%clk 0:01:50]} 31. Nf5+ {[%clk 0:00:48]}  Nxf5 {[%clk 0:01:50]} 32. exf5 {[%clk 0:00:49]}  h4 {[%clk 0:01:48]} 0-1


[Site "https://www.chess.com"]

[Event "Titled Tuesday Blitz March 28 Late 2023"]
[White "Alekseenko, Kirill"]
[Black "Yurasova, Daria"]
[WhiteFideId "4135539"]
[BlackFideId "34146919"]
[WhiteElo "2683"]
[BlackElo "2134"]
[Result "1-0"]
[Round "03"]
[TimeControl "180+2"]
[Date "2023.03.28"]
[WhiteClock "0:00:37"]
[BlackClock "0:00:03"]

1. d4 {[%clk 0:03:00]}  d5 {[%clk 0:02:56]} 2. Nc3 {[%clk 0:03:01]}  Nf6 {[%clk 0:02:56]} 3. Bf4 {[%clk 0:03:01]}  Bf5 {[%clk 0:02:55]} 4. f3 {[%clk 0:02:59]}  e6 {[%clk 0:02:54]} 5. g4 {[%clk 0:02:59]}  Bg6 {[%clk 0:02:54]} 6. h4 {[%clk 0:03:00]}  h5 {[%clk 0:02:53]} 7. g5 {[%clk 0:03:00]}  Nfd7 {[%clk 0:02:53]} 8. e3 {[%clk 0:03:01]}  Bd6 {[%clk 0:02:53]} 9. Nh3 {[%clk 0:02:58]}  Qe7 {[%clk 0:02:49]} 10. Bd3 {[%clk 0:02:58]}  Bxd3 {[%clk 0:02:49]} 11. Qxd3 {[%clk 0:02:59]}  g6 {[%clk 0:02:49]} 12. O-O-O {[%clk 0:02:59]}  O-O {[%clk 0:02:41]} 13. e4 {[%clk 0:02:56]}  Nc6 {[%clk 0:02:00]} 14. exd5 {[%clk 0:02:37]}  Nb4 {[%clk 0:01:54]} 15. Qe2 {[%clk 0:02:31]}  Nxd5 {[%clk 0:01:46]} 16. Nxd5 {[%clk 0:02:28]}  exd5 {[%clk 0:01:47]} 17. Qxe7 {[%clk 0:02:28]}  Bxe7 {[%clk 0:01:48]} 18. Bxc7 {[%clk 0:02:28]}  Rfc8 {[%clk 0:01:47]} 19. Bg3 {[%clk 0:02:24]}  Rc4 {[%clk 0:01:44]} 20. Rhe1 {[%clk 0:02:17]}  Bf8 {[%clk 0:01:40]} 21. Re2 {[%clk 0:02:13]}  b5 {[%clk 0:01:37]} 22. Nf4 {[%clk 0:02:12]}  Nb6 {[%clk 0:01:37]} 23. Bf2 {[%clk 0:02:00]}  a5 {[%clk 0:01:26]} 24. Nd3 {[%clk 0:01:56]}  Rac8 {[%clk 0:01:18]} 25. Nc5 {[%clk 0:01:49]}  Na4 {[%clk 0:00:40]} 26. Nxa4 {[%clk 0:01:42]}  Rxa4 {[%clk 0:00:33]} 27. Kb1 {[%clk 0:01:40]}  Rac4 {[%clk 0:00:32]} 28. Rdd2 {[%clk 0:01:33]}  Bg7 {[%clk 0:00:29]} 29. Re7 {[%clk 0:01:26]}  R4c7 {[%clk 0:00:19]} 30. Rxc7 {[%clk 0:01:12]}  Rxc7 {[%clk 0:00:20]} 31. c3 {[%clk 0:01:12]}  b4 {[%clk 0:00:19]} 32. Kc2 {[%clk 0:01:12]}  Bf8 {[%clk 0:00:18]} 33. Bg3 {[%clk 0:01:10]}  Rc8 {[%clk 0:00:18]} 34. Kd3 {[%clk 0:01:09]}  a4 {[%clk 0:00:17]} 35. cxb4 {[%clk 0:01:03]}  Bxb4 {[%clk 0:00:18]} 36. Rc2 {[%clk 0:01:03]}  Re8 {[%clk 0:00:18]} 37. a3 {[%clk 0:01:00]}  Bf8 {[%clk 0:00:17]} 38. Be5 {[%clk 0:00:49]}  Bg7 {[%clk 0:00:13]} 39. f4 {[%clk 0:00:49]}  Bf8 {[%clk 0:00:10]} 40. Rc6 {[%clk 0:00:47]}  Ra8 {[%clk 0:00:09]} 41. Rb6 {[%clk 0:00:46]}  Be7 {[%clk 0:00:03]} 42. Rb5 {[%clk 0:00:46]}  Rd8 {[%clk 0:00:03]} 43. Ra5 {[%clk 0:00:46]}  Rc8 {[%clk 0:00:03]} 44. Rxa4 {[%clk 0:00:45]}  Bf8 {[%clk 0:00:02]} 45. Ra5 {[%clk 0:00:42]}  Rc1 {[%clk 0:00:02]} 46. Ra8 {[%clk 0:00:39]}  f6 {[%clk 0:00:03]} 47. Bd6 {[%clk 0:00:37]} 1-0


[Site "https://www.chess.com"]

[Event "Titled Tuesday Blitz March 28 Late 2023"]
[White "Quinones Garcia, Santiago"]
[Black "Sargsyan, Shant"]
[WhiteFideId "4408497"]
[BlackFideId "13306766"]
[WhiteElo "2263"]
[BlackElo "2628"]
[Result "0-1"]
[Round "03"]
[TimeControl "180+2"]
[Date "2023.03.28"]
[WhiteClock "0:01:42"]
[BlackClock "0:02:16"]

1. d4 {[%clk 0:03:00]}  g6 {[%clk 0:03:00]} 2. c4 {[%clk 0:03:01]}  Nf6 {[%clk 0:03:01]} 3. Nc3 {[%clk 0:03:01]}  Bg7 {[%clk 0:03:01]} 4. e4 {[%clk 0:03:02]}  d6 {[%clk 0:03:02]} 5. Nf3 {[%clk 0:03:02]}  O-O {[%clk 0:03:02]} 6. h3 {[%clk 0:03:01]}  Na6 {[%clk 0:03:00]} 7. Be3 {[%clk 0:03:00]}  e5 {[%clk 0:03:01]} 8. d5 {[%clk 0:03:00]}  Nc5 {[%clk 0:03:01]} 9. Nd2 {[%clk 0:03:01]}  a5 {[%clk 0:03:01]} 10. g4 {[%clk 0:03:01]}  c6 {[%clk 0:03:00]} 11. a3 {[%clk 0:03:00]}  a4 {[%clk 0:03:00]} 12. Qc2 {[%clk 0:02:59]}  Qa5 {[%clk 0:03:00]} 13. Be2 {[%clk 0:02:56]}  Bd7 {[%clk 0:02:59]} 14. Kf1 {[%clk 0:02:55]}  Rfc8 {[%clk 0:02:52]} 15. Kg2 {[%clk 0:02:53]}  Ne8 {[%clk 0:02:53]} 16. h4 {[%clk 0:02:51]}  cxd5 {[%clk 0:02:53]} 17. cxd5 {[%clk 0:02:50]}  b5 {[%clk 0:02:53]} 18. h5 {[%clk 0:02:42]}  Rab8 {[%clk 0:02:40]} 19. hxg6 {[%clk 0:02:37]}  fxg6 {[%clk 0:02:38]} 20. Rh4 {[%clk 0:02:29]}  b4 {[%clk 0:02:38]} 21. axb4 {[%clk 0:02:29]}  Qxb4 {[%clk 0:02:39]} 22. Nc4 {[%clk 0:02:16]}  Nb3 {[%clk 0:02:33]} 23. Rah1 {[%clk 0:02:14]}  Rxc4 {[%clk 0:02:33]} 24. Bxc4 {[%clk 0:02:15]}  Qxc4 {[%clk 0:02:33]} 25. Bh6 {[%clk 0:01:51]}  Nf6 {[%clk 0:02:16]} 26. Bxg7 {[%clk 0:01:45]}  Kxg7 {[%clk 0:02:16]} 27. Qd2 {[%clk 0:01:42]}  Nxd2 {[%clk 0:02:16]} 0-1


[Site "https://www.chess.com"]

[Event "Titled Tuesday Blitz March 28 Late 2023"]
[White "Romkachess"]
[Black "Makarian, Rudik"]
[BlackFideId "44105681"]
[WhiteElo "2503"]
[BlackElo "2436"]
[Result "1-0"]
[Round "03"]
[TimeControl "180+2"]
[Date "2023.03.28"]
[WhiteClock "0:00:31"]
[BlackClock "0:00:04"]

1. e4 {[%clk 0:03:00]}  c5 {[%clk 0:02:59]} 2. Nf3 {[%clk 0:03:00]}  e6 {[%clk 0:02:59]} 3. d4 {[%clk 0:03:00]}  cxd4 {[%clk 0:03:00]} 4. Nxd4 {[%clk 0:03:01]}  Nc6 {[%clk 0:03:00]} 5. Nc3 {[%clk 0:03:00]}  Qc7 {[%clk 0:02:59]} 6. Be3 {[%clk 0:02:58]}  a6 {[%clk 0:02:59]} 7. Qd2 {[%clk 0:02:59]}  Nf6 {[%clk 0:02:57]} 8. f4 {[%clk 0:02:59]}  Bb4 {[%clk 0:02:55]} 9. Bd3 {[%clk 0:03:00]}  b5 {[%clk 0:02:53]} 10. a3 {[%clk 0:02:52]}  Ba5 {[%clk 0:02:39]} 11. b4 {[%clk 0:02:51]}  Bb6 {[%clk 0:02:27]} 12. Nde2 {[%clk 0:02:33]}  d6 {[%clk 0:02:09]} 13. Bxb5 {[%clk 0:02:09]}  Bxe3 {[%clk 0:02:09]} 14. Bxc6+ {[%clk 0:02:08]}  Qxc6 {[%clk 0:02:10]} 15. Qxe3 {[%clk 0:02:08]}  O-O {[%clk 0:02:10]} 16. O-O {[%clk 0:02:08]}  Bb7 {[%clk 0:02:09]} 17. Nd4 {[%clk 0:02:01]}  Qc4 {[%clk 0:02:07]} 18. Rad1 {[%clk 0:01:27]}  Rac8 {[%clk 0:01:55]} 19. Rd3 {[%clk 0:01:27]}  Rfd8 {[%clk 0:01:31]} 20. Rfd1 {[%clk 0:01:26]}  g6 {[%clk 0:01:17]} 21. h3 {[%clk 0:01:26]}  Qc7 {[%clk 0:01:04]} 22. e5 {[%clk 0:01:12]}  dxe5 {[%clk 0:00:49]} 23. Qxe5 {[%clk 0:01:12]}  Qxe5 {[%clk 0:00:40]} 24. fxe5 {[%clk 0:01:12]}  Nd5 {[%clk 0:00:41]} 25. Nb3 {[%clk 0:00:54]}  Re8 {[%clk 0:00:27]} 26. Nc5 {[%clk 0:00:54]}  Nxc3 {[%clk 0:00:22]} 27. Rxc3 {[%clk 0:00:52]}  Bd5 {[%clk 0:00:23]} 28. Rcd3 {[%clk 0:00:40]}  Rc7 {[%clk 0:00:19]} 29. Rd4 {[%clk 0:00:41]}  Kg7 {[%clk 0:00:06]} 30. c4 {[%clk 0:00:41]}  Bc6 {[%clk 0:00:07]} 31. Nxa6 {[%clk 0:00:41]}  Ra7 {[%clk 0:00:06]} 32. b5 {[%clk 0:00:42]}  Ba8 {[%clk 0:00:05]} 33. Rd6 {[%clk 0:00:42]}  Rc8 {[%clk 0:00:04]} 34. c5 {[%clk 0:00:42]}  Bb7 {[%clk 0:00:04]} 35. Rd7 {[%clk 0:00:37]}  Rca8 {[%clk 0:00:04]} 36. Rf1 {[%clk 0:00:32]}  Bxa6 {[%clk 0:00:04]} 37. Rfxf7+ {[%clk 0:00:31]} 1-0


[Site "https://www.chess.com"]

[Event "Titled Tuesday Blitz March 28 Late 2023"]
[White "Estrada Nieto, Julian"]
[Black "Durarbayli, Vasif"]
[WhiteFideId "5101018"]
[BlackFideId "13402935"]
[WhiteElo "2176"]
[BlackElo "2543"]
[Result "0-1"]
[Round "03"]
[TimeControl "180+2"]
[Date "2023.03.28"]
[WhiteClock "0:00:02"]
[BlackClock "0:00:16"]

1. e4 {[%clk 0:03:00]}  e5 {[%clk 0:02:55]} 2. Nf3 {[%clk 0:03:01]}  Nc6 {[%clk 0:02:56]} 3. Bb5 {[%clk 0:03:01]}  a6 {[%clk 0:02:56]} 4. Ba4 {[%clk 0:03:01]}  Nf6 {[%clk 0:02:56]} 5. O-O {[%clk 0:03:02]}  Be7 {[%clk 0:02:57]} 6. d3 {[%clk 0:02:57]}  b5 {[%clk 0:02:56]} 7. Bb3 {[%clk 0:02:57]}  O-O {[%clk 0:02:56]} 8. a4 {[%clk 0:02:57]}  Rb8 {[%clk 0:02:55]} 9. axb5 {[%clk 0:02:55]}  axb5 {[%clk 0:02:56]} 10. c3 {[%clk 0:02:54]}  d6 {[%clk 0:02:55]} 11. h3 {[%clk 0:02:48]}  b4 {[%clk 0:02:52]} 12. Re1 {[%clk 0:02:44]}  bxc3 {[%clk 0:02:51]} 13. bxc3 {[%clk 0:02:43]}  Be6 {[%clk 0:02:52]} 14. Nbd2 {[%clk 0:02:35]}  d5 {[%clk 0:02:44]} 15. Ba4 {[%clk 0:02:31]}  dxe4 {[%clk 0:02:33]} 16. dxe4 {[%clk 0:02:26]}  Rb6 {[%clk 0:02:24]} 17. Bxc6 {[%clk 0:01:46]}  Rxc6 {[%clk 0:02:25]} 18. Nxe5 {[%clk 0:01:29]}  Rc5 {[%clk 0:02:15]} 19. Nef3 {[%clk 0:01:07]}  Rxc3 {[%clk 0:02:15]} 20. Bb2 {[%clk 0:01:04]}  Rd3 {[%clk 0:02:16]} 21. Qc2 {[%clk 0:00:59]}  Nh5 {[%clk 0:02:08]} 22. Red1 {[%clk 0:00:52]}  Nf4 {[%clk 0:02:03]} 23. Ne5 {[%clk 0:00:48]}  Bc5 {[%clk 0:01:18]} 24. Nxd3 {[%clk 0:00:20]}  Nxd3 {[%clk 0:01:17]} 25. Nf3 {[%clk 0:00:14]}  Bxf2+ {[%clk 0:01:10]} 26. Kf1 {[%clk 0:00:14]}  Bg3 {[%clk 0:00:45]} 27. Rxd3 {[%clk 0:00:14]}  Qc8 {[%clk 0:00:46]} 28. Qc3 {[%clk 0:00:12]}  f6 {[%clk 0:00:45]} 29. Kg1 {[%clk 0:00:11]}  c5 {[%clk 0:00:40]} 30. Rc1 {[%clk 0:00:09]}  c4 {[%clk 0:00:41]} 31. Rd2 {[%clk 0:00:09]}  Bf4 {[%clk 0:00:39]} 32. Re2 {[%clk 0:00:07]}  Rd8 {[%clk 0:00:28]} 33. Rce1 {[%clk 0:00:06]}  Rd3 {[%clk 0:00:28]} 34. Qa5 {[%clk 0:00:06]}  Bxh3 {[%clk 0:00:26]} 35. Nd4 {[%clk 0:00:04]}  Bg4 {[%clk 0:00:20]} 36. Qd5+ {[%clk 0:00:04]}  Kh8 {[%clk 0:00:19]} 37. Nf5 {[%clk 0:00:04]}  Rxd5 {[%clk 0:00:16]} 38. Ne7 {[%clk 0:00:02]}  Qc5+ {[%clk 0:00:16]} 0-1


[Site "https://www.chess.com"]

[Event "Titled Tuesday Blitz March 28 Late 2023"]
[White "Tari, Aryan"]
[Black "Dauner, Benedikt"]
[WhiteFideId "1510045"]
[BlackFideId "16225899"]
[WhiteElo "2583"]
[BlackElo "2205"]
[Result "1-0"]
[Round "03"]
[TimeControl "180+2"]
[Date "2023.03.28"]
[WhiteClock "0:00:19"]
[BlackClock "0:00:17"]

1. Nf3 {[%clk 0:02:49]}  g6 {[%clk 0:02:57]} 2. e4 {[%clk 0:02:31]}  Bg7 {[%clk 0:02:58]} 3. d4 {[%clk 0:02:32]}  d6 {[%clk 0:02:56]} 4. Bd3 {[%clk 0:02:32]}  Nf6 {[%clk 0:02:56]} 5. c3 {[%clk 0:02:33]}  O-O {[%clk 0:02:55]} 6. O-O {[%clk 0:02:33]}  e6 {[%clk 0:02:56]} 7. Re1 {[%clk 0:02:33]}  b6 {[%clk 0:02:55]} 8. Nbd2 {[%clk 0:02:33]}  Bb7 {[%clk 0:02:55]} 9. Nf1 {[%clk 0:02:34]}  Nc6 {[%clk 0:02:54]} 10. Ng3 {[%clk 0:02:34]}  a6 {[%clk 0:02:53]} 11. h4 {[%clk 0:02:33]}  Ne7 {[%clk 0:02:48]} 12. h5 {[%clk 0:02:32]}  Re8 {[%clk 0:02:34]} 13. h6 {[%clk 0:02:29]}  Bh8 {[%clk 0:02:28]} 14. Bg5 {[%clk 0:02:28]}  Qd7 {[%clk 0:02:26]} 15. e5 {[%clk 0:02:12]}  Nfd5 {[%clk 0:02:21]} 16. Ne4 {[%clk 0:02:10]}  b5 {[%clk 0:02:14]} 17. Nh2 {[%clk 0:02:04]}  dxe5 {[%clk 0:02:03]} 18. Nc5 {[%clk 0:02:04]}  Qc6 {[%clk 0:02:00]} 19. Nxb7 {[%clk 0:02:04]}  Qxb7 {[%clk 0:02:00]} 20. dxe5 {[%clk 0:02:04]}  Rad8 {[%clk 0:01:37]} 21. Qf3 {[%clk 0:01:59]}  c5 {[%clk 0:01:18]} 22. Ng4 {[%clk 0:01:57]}  Qc7 {[%clk 0:01:16]} 23. Be4 {[%clk 0:01:52]}  Nf5 {[%clk 0:01:08]} 24. Bxd8 {[%clk 0:01:46]}  Rxd8 {[%clk 0:01:09]} 25. Rad1 {[%clk 0:01:31]}  Nfe7 {[%clk 0:01:04]} 26. Bxd5 {[%clk 0:01:23]}  Nxd5 {[%clk 0:01:02]} 27. g3 {[%clk 0:00:44]}  c4 {[%clk 0:01:01]} 28. Rd4 {[%clk 0:00:36]}  Re8 {[%clk 0:01:01]} 29. Rxd5 {[%clk 0:00:33]}  exd5 {[%clk 0:01:01]} 30. Nf6+ {[%clk 0:00:33]}  Kf8 {[%clk 0:00:55]} 31. Nxh7+ {[%clk 0:00:32]}  Ke7 {[%clk 0:00:51]} 32. Nf6 {[%clk 0:00:32]}  Rd8 {[%clk 0:00:38]} 33. Nxd5+ {[%clk 0:00:32]}  Rxd5 {[%clk 0:00:36]} 34. Qxd5 {[%clk 0:00:33]}  b4 {[%clk 0:00:31]} 35. cxb4 {[%clk 0:00:30]}  c3 {[%clk 0:00:31]} 36. bxc3 {[%clk 0:00:28]}  a5 {[%clk 0:00:30]} 37. a3 {[%clk 0:00:21]}  Kf8 {[%clk 0:00:29]} 38. Qd6+ {[%clk 0:00:20]}  Qxd6 {[%clk 0:00:25]} 39. exd6 {[%clk 0:00:20]}  Bxc3 {[%clk 0:00:25]} 40. d7 {[%clk 0:00:21]}  Bh8 {[%clk 0:00:17]} 41. Re8# {[%clk 0:00:19]} 1-0


[Site "https://www.chess.com"]